bitfinex/quotes_SOLUSD_20230404
["timestamp","ask_amount","ask_price","bid_price","bid_amount"]
[1680645990687,10.0,21.009,20.996,17.0]
[1680645990894,20.0,21.008,20.991,10.0]
[1680645991196,20.0,21.008,20.992,17.0]
[1680645993775,20.0,21.008,20.992,38.436]
[1680645995676,20.0,21.008,20.993,10.0]
[1680645995879,20.0,21.008,20.994,17.0]
[1680645997599,20.0,21.009,20.994,17.0]
[1680645997802,20.0,21.009,20.996,21.432]
[1680645998007,20.0,21.009,20.997,17.0]
[1680645998296,20.0,21.009,20.998,10.0]
[1680645998498,20.0,21.016,20.999,17.0]
[1680645999322,123.38701637,21.019,20.999,17.0]
[1680645999508,131.329398,21.021,21.0,21.428]
[1680645999797,131.329398,21.021,21.001,7.15521637]
[1680645999976,131.329398,21.021,21.004,21.423]
[1680646000181,131.329398,21.021,21.006,10.0]
[1680646000381,131.329398,21.021,21.007,17.0]
[1680646001000,20.0,21.02,21.007,17.0]
[1680646001502,20.0,21.02,21.006,17.0]
[1680646001794,20.0,21.02,21.005,17.0]
[1680646002189,10.0,21.019,21.005,17.0]
[1680646002393,10.0,21.019,21.0,10.0]
[1680646002595,20.0,21.018,21.001,17.0]
[1680646002794,20.0,21.018,21.0,10.0]
[1680646004386,20.0,21.018,21.001,17.0]
[1680646004585,20.0,21.018,21.003,21.425]
[1680646004787,20.0,21.02,21.005,10.0]
[1680646004987,20.0,21.02,21.006,17.0]
[1680646005187,10.0,21.019,21.004,17.0]
[1680646005401,20.0,21.018,21.004,17.0]
[1680646006496,20.0,21.019,21.004,17.0]
[1680646009193,20.0,21.019,21.005,10.0]
[1680646009389,112.2828,21.021,21.006,17.0]
[1680646009703,112.2828,21.021,21.006,37.0]
[1680646009888,112.2828,21.021,21.007,10.0]
[1680646010095,112.2828,21.021,21.008,37.0]
[1680646010502,112.2828,21.021,21.009,10.0]
[1680646010696,112.2828,21.021,21.01,17.0]
[1680646011298,10.0,21.029,21.013,21.415]
[1680646011497,10.0,21.03,21.014,17.0]
[1680646011498,20.0,21.028,21.014,17.0]
[1680646012192,10.0,21.028,21.014,17.0]
[1680646012396,22.45,21.02,21.011,117.485]
[1680646012587,22.45,21.02,21.008,21.419]
[1680646012794,20.0,21.019,21.008,21.419]
[1680646013892,20.0,21.019,21.009,17.0]
[1680646015387,20.0,21.019,21.01,10.0]
[1680646016406,20.0,21.019,21.009,17.0]
[1680646021116,20.0,21.019,21.008,21.419]
[1680646023803,20.0,21.019,21.009,17.0]
[1680646025719,20.0,21.019,21.01,10.0]
[1680646025922,20.0,21.019,21.011,17.0]
[1680646026921,22.45,21.02,21.011,17.0]
[1680646029516,22.45,21.02,21.008,21.419]
[1680646029715,22.45,21.02,21.009,37.0]
[1680646031431,22.45,21.02,21.009,20.0]
[1680646031830,22.45,21.02,21.005,20.0]
[1680646033230,22.45,21.02,21.006,17.0]
[1680646033415,22.45,21.02,21.007,20.0]
[1680646036411,22.45,21.02,21.01,21.418]
[1680646036611,22.45,21.02,21.011,17.0]
[1680646038114,22.45,21.02,21.007,20.0]
[1680646039832,22.45,21.02,21.01,21.417]
[1680646040010,22.45,21.02,21.011,17.0]
[1680646044719,22.45,21.02,21.014,21.414]
[1680646044921,22.45,21.02,21.015,17.0]
[1680646045132,32.54,21.03,21.015,17.0]
[1680646045334,10.0,21.028,21.015,17.0]
[1680646049128,32.54,21.03,21.015,17.0]
[1680646049435,20.0,21.029,21.015,17.0]
[1680646049834,10.0,21.028,21.015,17.0]
[1680646051735,20.0,21.029,21.015,17.0]
[1680646052631,20.0,21.029,21.016,10.0]
[1680646052824,20.0,21.029,21.017,17.0]
[1680646053428,22.54,21.03,21.018,41.41]
[1680646053641,10.0,21.029,21.019,17.0]
[1680646053936,22.54,21.03,21.019,17.0]
[1680646054140,20.0,21.028,21.019,17.0]
[1680646054940,20.0,21.029,21.019,17.0]
[1680646056333,22.54,21.03,21.019,17.0]
[1680646058239,22.54,21.03,21.02,10.0]
[1680646058428,22.54,21.03,21.021,17.0]
[1680646059032,22.54,21.03,21.019,17.0]
[1680646059351,22.54,21.03,21.02,10.0]
[1680646059533,22.54,21.03,21.021,17.0]
[1680646063044,42.45,21.04,21.022,31.405]
[1680646063431,20.0,21.039,21.024,10.0]
[1680646063631,20.0,21.039,21.027,21.4]
[1680646063833,20.0,21.039,21.028,17.0]
[1680646064525,10.0,21.038,21.024,10.0]
[1680646064728,10.0,21.038,21.025,17.0]
[1680646064950,10.0,21.038,21.018,28.56421637]
[1680646065143,10.0,21.036,21.019,20.0]
[1680646066344,40.45,21.04,21.022,21.405]
[1680646066550,40.45,21.04,21.023,10.0]
[1680646066755,20.0,21.039,21.024,17.0]
[1680646068326,20.0,21.039,21.022,21.405]
[1680646068327,22.36,21.03,21.022,21.405]
[1680646071447,22.36,21.03,21.019,20.0]
[1680646071655,22.36,21.03,21.02,17.0]
[1680646080263,10.0,21.029,21.018,21.409]
[1680646080443,20.0,21.028,21.018,21.409]
[1680646081351,20.0,21.029,21.018,21.409]
[1680646081548,20.0,21.029,21.021,21.407]
[1680646082150,20.0,21.029,21.018,21.409]
[1680646082345,20.0,21.029,21.019,17.0]
[1680646090150,20.0,21.029,21.018,17.0]
[1680646092363,20.0,21.029,21.016,17.0]
[1680646093152,20.0,21.029,21.014,17.0]
[1680646093555,20.0,21.029,21.012,21.415]
[1680646093751,20.0,21.029,21.01,265.57497979]
[1680646093963,20.0,21.029,21.01,225.9032]
[1680646094159,10.0,21.028,21.01,225.9032]
[1680646094374,10.0,21.028,21.01,233.05841637]
[1680646095066,10.0,21.028,21.013,10.0]
[1680646095268,10.0,21.028,21.014,17.0]
[1680646100773,10.0,21.028,21.016,21.412]
[1680646100953,10.0,21.028,21.017,17.0]
[1680646102670,20.0,21.029,21.017,17.0]
[1680646102971,20.0,21.029,21.016,21.412]
[1680646103271,10.0,21.028,21.016,21.412]
[1680646103662,20.0,21.029,21.016,21.412]
[1680646105163,10.0,21.028,21.016,21.412]
[1680646106151,10.0,21.028,21.013,7.15521637]
[1680646106357,22.36,21.02,21.012,21.409]
[1680646107975,22.36,21.02,21.013,17.0]
[1680646108271,22.36,21.02,21.009,10.0]
[1680646108272,22.36,21.02,21.015,21.413]
[1680646108456,10.0,21.026,21.015,21.413]
[1680646109056,10.0,21.026,21.016,17.0]
[1680646109268,10.0,21.027,21.016,17.0]
[1680646109557,20.0,21.029,21.019,21.409]
[1680646113666,20.0,21.029,21.02,17.0]
[1680646113867,20.0,21.029,21.021,10.0]
[1680646114166,22.36,21.03,21.023,21.404]
[1680646114367,22.36,21.03,21.024,17.0]
[1680646115269,22.36,21.03,21.023,21.404]
[1680646115472,22.36,21.03,21.024,17.0]
[1680646117981,20.0,21.029,21.023,21.404]
[1680646119080,20.0,21.029,21.018,21.409]
[1680646120490,20.0,21.029,21.019,17.0]
[1680646121488,20.0,21.029,21.02,10.0]
[1680646121688,20.0,21.029,21.021,17.0]
[1680646121888,20.0,21.029,21.018,21.409]
[1680646122770,20.0,21.029,21.019,10.0]
[1680646122975,20.0,21.029,21.021,21.406]
[1680646123488,20.0,21.029,21.022,17.0]
[1680646123883,20.0,21.029,21.021,21.406]
[1680646124492,20.0,21.029,21.016,10.0]
[1680646124493,20.0,21.029,21.016,31.411]
[1680646124790,20.0,21.029,21.017,17.0]
[1680646125186,20.0,21.029,21.018,10.0]
[1680646125381,20.0,21.029,21.019,17.0]
[1680646126811,20.0,21.029,21.019,38.408]
[1680646128799,20.0,21.029,21.02,10.0]
[1680646128998,20.0,21.029,21.021,17.0]
[1680646131004,22.36,21.03,21.021,17.0]
[1680646131183,32.31,21.04,21.023,21.405]
[1680646131382,32.31,21.04,21.024,17.0]
[1680646131703,17.0,21.039,21.024,17.0]
[1680646132287,22.31,21.04,21.024,17.0]
[1680646132493,20.0,21.039,21.027,21.401]
[1680646132694,20.0,21.039,21.028,17.0]
[1680646134100,20.0,21.039,21.027,21.401]
[1680646134286,20.0,21.039,21.028,17.0]
[1680646135000,20.0,21.039,21.027,21.401]
[1680646135203,20.0,21.039,21.023,21.404]
[1680646135389,10.0,21.038,21.023,21.404]
[1680646135886,30.0,21.039,21.023,21.404]
[1680646136088,10.0,21.038,21.023,21.404]
[1680646137305,10.0,21.038,21.024,17.0]
[1680646140611,20.0,21.039,21.027,21.401]
[1680646145317,22.31,21.04,21.031,21.396]
[1680646145501,22.31,21.04,21.032,17.0]
[1680646147305,22.31,21.04,21.031,21.396]
[1680646148010,20.0,21.039,21.031,21.396]
[1680646148419,20.0,21.039,21.026,42.803]
[1680646148420,20.0,21.039,21.026,64.204]
[1680646148722,20.0,21.039,21.027,17.0]
[1680646149325,20.0,21.039,21.026,64.204]
[1680646150210,20.0,21.039,21.027,10.0]
[1680646150824,20.0,21.039,21.028,17.0]
[1680646152020,20.0,21.039,21.027,17.0]
[1680646153417,20.0,21.039,21.029,21.398]
[1680646154405,20.0,21.039,21.03,17.0]
[1680646155731,20.0,21.039,21.029,21.398]
[1680646173238,10.0,21.038,21.029,21.398]
[1680646173840,20.0,21.039,21.029,21.398]
[1680646176317,20.0,21.039,21.03,17.0]
[1680646178440,22.31,21.04,21.03,17.0]
[1680646179445,22.31,21.04,21.033,21.394]
[1680646180921,10.0,21.049,21.035,10.0]
[1680646181124,22.36,21.05,21.039,21.388]
[1680646181538,20.0,21.049,21.039,21.388]
[1680646181751,20.0,21.049,21.026,116.0103]
[1680646181923,22.36,21.04,21.03,21.397]
[1680646183431,22.36,21.04,21.031,17.0]
[1680646187141,22.36,21.04,21.032,10.0]
[1680646187440,22.36,21.04,21.034,21.393]
[1680646188143,10.0,21.048,21.035,17.0]
[1680646188346,10.0,21.048,21.038,21.388]
[1680646188531,30.0,21.049,21.039,17.0]
[1680646188732,20.0,21.049,21.041,21.385]
[1680646200759,22.36,21.05,21.041,21.385]
[1680646200939,22.36,21.05,21.042,10.0]
[1680646202641,22.36,21.05,21.041,21.385]
[1680646202857,22.36,21.05,21.042,17.0]
[1680646211757,22.36,21.05,21.043,10.0]
[1680646211957,22.36,21.06,21.05,21.377]
[1680646212159,20.0,21.059,21.05,21.377]
[1680646212364,20.0,21.059,21.051,17.0]
[1680646213363,20.0,21.059,21.05,21.377]
[1680646213668,20.0,21.059,21.051,17.0]
[1680646214448,20.0,21.059,21.05,21.377]
[1680646220064,20.0,21.059,21.05,21.377]
[1680646220870,20.0,21.059,21.051,17.0]
[1680646221773,20.0,21.059,21.05,21.377]
[1680646221955,20.0,21.059,21.051,17.0]
[1680646224482,20.0,21.059,21.052,17.0]
[1680646224956,20.0,21.059,21.051,17.0]
[1680646228369,22.36,21.06,21.051,17.0]
[1680646230876,19.86,21.06,21.051,17.0]
[1680646234279,19.86,21.06,21.051,59.751]
[1680646234963,19.86,21.06,21.051,42.751]
[1680646235871,19.86,21.06,21.05,21.377]
[1680646236080,10.0,21.058,21.05,21.377]
[1680646243883,10.0,21.059,21.05,21.377]
[1680646244083,20.0,21.058,21.05,21.377]
[1680646244980,20.0,21.059,21.05,21.377]
[1680646250387,20.0,21.059,21.051,10.0]
[1680646251691,20.0,21.059,21.05,21.377]
[1680646261175,10.0,21.058,21.05,21.377]
[1680646261979,9.5,21.058,21.05,21.377]
[1680646262482,9.5,21.058,21.046,21.381]
[1680646263982,20.0,21.059,21.046,21.381]
[1680646266490,20.0,21.059,21.047,17.0]
[1680646272499,20.0,21.059,21.046,21.381]
[1680646272807,20.0,21.059,21.042,82.67436233]
[1680646272985,10.0,21.058,21.042,82.67436233]
[1680646273498,10.0,21.058,21.044,10.0]
[1680646273699,10.0,21.058,21.042,82.67436233]
[1680646274003,10.0,21.058,21.044,17.0]
[1680646275506,10.0,21.058,21.042,82.67436233]
[1680646275993,10.0,21.058,21.044,17.0]
[1680646278192,10.0,21.058,21.042,82.67436233]
[1680646278599,17.0,21.057,21.042,82.67436233]
[1680646279104,10.0,21.056,21.042,82.67436233]
[1680646279790,17.0,21.055,21.043,112.1184]
[1680646280304,21.08,21.05,21.042,61.28936233]
[1680646280491,21.08,21.05,21.043,10.0]
[1680646281006,10.0,21.058,21.043,10.0]
[1680646281197,30.0,21.059,21.044,17.0]
[1680646283103,10.0,21.058,21.044,17.0]
[1680646286312,10.0,21.058,21.043,17.0]
[1680646287196,10.0,21.058,21.043,125.7663]
[1680646288504,10.0,21.058,21.043,108.7663]
[1680646288704,10.0,21.056,21.043,108.7663]
[1680646288894,20.98,21.05,21.043,108.7663]
[1680646293291,20.98,21.05,21.038,61.28936233]
[1680646293498,20.98,21.05,21.039,20.0]
[1680646294810,20.98,21.05,21.04,17.0]
[1680646300797,20.98,21.05,21.04,38.387]
[1680646301203,19.98,21.05,21.04,38.387]
[1680646303214,19.98,21.05,21.039,20.0]
[1680646303708,19.98,21.05,21.038,61.28936233]
[1680646303709,10.0,21.049,21.036,21.391]
[1680646303910,20.0,21.048,21.034,14.45913886]
[1680646304312,27.0,21.047,21.034,14.45913886]
[1680646304815,27.0,21.047,21.031,116.2661]
[1680646305808,27.0,21.047,21.033,14.07747176]
[1680646307116,21.08,21.04,21.031,116.2661]
[1680646309217,21.08,21.04,21.029,7.15521637]
[1680646309422,37.0,21.039,21.009,42.837]
[1680646309721,37.0,21.039,21.018,10.0]
[1680646309722,20.98,21.03,21.018,10.0]
[1680646310113,20.0,21.029,21.017,21.411]
[1680646311719,17.0,21.028,21.017,21.411]
[1680646320327,20.0,21.029,21.017,21.411]
[1680646320732,17.0,21.028,21.017,21.411]
[1680646321821,20.0,21.029,21.017,21.411]
[1680646322034,20.0,21.029,21.021,21.406]
[1680646323324,20.98,21.03,21.022,17.0]
[1680646323526,20.98,21.04,21.027,21.4]
[1680646323924,20.98,21.04,21.028,17.0]
[1680646324123,20.0,21.039,21.03,21.397]
[1680646324729,20.0,21.038,21.03,21.397]
[1680646333925,20.0,21.039,21.03,21.397]
[1680646338539,20.0,21.039,21.025,21.402]
[1680646338729,10.0,21.038,21.025,21.402]
[1680646339331,20.0,21.039,21.026,10.0]
[1680646339844,20.0,21.039,21.027,17.0]
[1680646341541,20.0,21.039,21.026,17.0]
[1680646341740,20.0,21.039,21.027,10.0]
[1680646341935,20.0,21.039,21.028,17.0]
[1680646342334,10.0,21.038,21.026,17.0]
[1680646342535,10.0,21.038,21.025,21.402]
[1680646345953,10.0,21.036,21.025,21.402]
[1680646346133,10.0,21.036,21.023,114.7645]
[1680646346338,21.04,21.03,21.023,114.7645]
[1680646347854,21.04,21.03,21.017,21.411]
[1680646348049,20.0,21.029,21.017,134.7631]
[1680646349157,20.0,21.029,21.018,17.0]
[1680646349955,17.0,21.028,21.012,21.415]
[1680646350353,10.0,21.027,21.012,21.415]
[1680646350536,17.0,21.026,21.012,21.415]
[1680646351859,21.08,21.02,21.012,21.415]
[1680646353556,10.0,21.027,21.012,21.415]
[1680646353759,20.0,21.029,21.014,10.0]
[1680646353961,17.0,21.028,21.014,10.0]
[1680646357256,17.0,21.028,21.013,10.0]
[1680646357460,10.0,21.027,21.012,21.415]
[1680646357665,10.0,21.027,21.013,17.0]
[1680646357846,17.0,21.028,21.013,17.0]
[1680646365062,17.0,21.028,21.012,21.415]
[1680646365368,21.08,21.02,21.008,21.08]
[1680646366754,21.08,21.02,21.007,140.7058]
[1680646367357,21.08,21.02,21.008,37.0]
[1680646369870,21.08,21.02,21.009,10.0]
[1680646370078,21.08,21.02,21.01,17.0]
[1680646373583,21.08,21.02,21.008,20.0]
[1680646379465,10.0,21.028,21.009,17.0]
[1680646379673,10.0,21.028,21.01,10.0]
[1680646379874,10.0,21.028,21.011,17.0]
[1680646380088,10.0,21.028,21.012,31.416]
[1680646380384,10.0,21.028,21.013,17.0]
[1680646380589,21.04,21.02,21.013,17.0]
[1680646381165,10.0,21.028,21.013,17.0]
[1680646386186,10.0,21.028,21.012,31.416]
[1680646386379,17.0,21.027,21.012,10.0]
[1680646391079,21.08,21.02,21.012,10.0]
[1680646391986,21.08,21.02,21.01,72.82303972]
[1680646392173,21.08,21.02,21.011,17.0]
[1680646394792,21.08,21.02,21.01,62.82303972]
[1680646394970,21.08,21.02,21.008,41.08]
[1680646396975,17.0,21.019,21.008,41.08]
[1680646399797,17.0,21.019,21.008,39.58]
[1680646400894,10.0,21.018,21.008,39.58]
[1680646401688,10.0,21.018,21.008,38.08]
[1680646403487,10.0,21.018,21.008,36.58]
[1680646404095,21.08,21.02,21.008,36.58]
[1680646404998,21.08,21.02,21.008,15.5]
[1680646409611,10.0,21.019,21.005,7.15521637]
[1680646409902,37.0,21.018,21.004,55.66782335]
[1680646410085,10.0,21.017,21.004,55.66782335]
[1680646411590,20.0,21.018,21.004,55.66782335]
[1680646415009,20.0,21.018,21.007,68.76126337]
[1680646422314,21.08,21.02,21.008,17.0]
[1680646422509,21.08,21.02,21.009,30.0]
[1680646422810,41.04,21.03,21.01,17.0]
[1680646423008,20.0,21.028,21.011,10.0]
[1680646423398,20.0,21.028,21.013,10.0]
[1680646423814,17.0,21.027,21.013,10.0]
[1680646424608,17.0,21.028,21.013,10.0]
[1680646426309,21.04,21.03,21.014,17.0]
[1680646426613,20.0,21.028,21.014,17.0]
[1680646434803,17.0,21.027,21.011,10.0]
[1680646435014,21.04,21.02,21.01,200.17535083]
[1680646435216,21.04,21.02,21.011,17.0]
[1680646438724,21.04,21.02,21.01,200.17535083]
[1680646438905,21.04,21.02,21.011,17.0]
[1680646440224,21.04,21.02,21.01,200.17535083]
[1680646440422,21.04,21.02,21.011,17.0]
[1680646443527,10.0,21.026,21.011,17.0]
[1680646444833,17.0,21.025,21.01,200.17535083]
[1680646445030,21.04,21.02,21.01,193.02013446]
[1680646448051,21.04,21.02,21.011,10.0]
[1680646449037,21.04,21.02,21.01,78.74593446]
[1680646450743,10.0,21.027,21.011,57.32893446]
[1680646451048,20.0,21.028,21.013,21.414]
[1680646451226,20.0,21.029,21.014,17.0]
[1680646451933,10.0,21.028,21.014,17.0]
[1680646452742,10.0,21.028,21.013,21.414]
[1680646452942,17.0,21.027,21.013,21.414]
[1680646454741,10.0,21.026,21.013,21.414]
[1680646457440,10.0,21.026,21.011,64.48415083]
[1680646457945,21.08,21.02,21.011,57.32893446]
[1680646459031,21.08,21.02,21.01,116.3098]
[1680646459349,20.0,21.019,21.01,116.3098]
[1680646464355,20.0,21.019,21.01,116.3098]
[1680646465856,20.0,21.019,21.008,21.419]
[1680646470356,20.0,21.019,21.004,57.32893446]
[1680646470559,17.0,21.018,21.004,57.32893446]
[1680646470947,10.0,21.017,21.004,57.32893446]
[1680646471255,17.0,21.016,21.004,57.32893446]
[1680646471464,17.0,21.016,21.001,58.48439748]
[1680646472061,21.04,21.01,21.001,58.48439748]
[1680646475065,21.04,21.01,21.001,43.9990276]
[1680646475269,21.04,21.01,20.999,20.0]
[1680646478870,21.04,21.01,20.997,52.54776286]
[1680646479071,21.04,21.01,20.998,20.0]
[1680646483556,21.04,21.01,20.999,21.429]
[1680646486673,21.04,21.01,20.999,81.13197923]
[1680646486850,139.5326,21.02,21.0,27.0]
[1680646487049,139.5326,21.02,21.002,21.425]
[1680646487050,21.08,21.02,21.002,21.425]
[1680646487267,21.08,21.02,21.003,17.0]
[1680646487268,20.0,21.019,21.003,17.0]
[1680646487580,20.0,21.019,21.007,10.0]
[1680646487760,20.0,21.019,21.008,17.0]
[1680646488379,20.0,21.019,21.01,21.418]
[1680646488561,21.04,21.027,21.011,17.0]
[1680646488755,21.04,21.027,21.013,21.414]
[1680646488950,21.04,21.027,21.014,17.0]
[1680646489159,21.04,21.027,21.016,21.411]
[1680646489362,21.04,21.027,21.017,17.0]
[1680646490379,21.04,21.027,21.018,10.0]
[1680646490672,21.04,21.027,21.019,17.0]
[1680646491084,21.04,21.027,21.017,17.0]
[1680646491366,21.04,21.027,21.02,21.408]
[1680646491561,21.04,21.027,21.018,10.0]
[1680646491762,21.04,21.027,21.019,17.0]
[1680646493681,21.04,21.027,21.016,21.412]
[1680646493879,21.04,21.027,21.017,17.0]
[1680646495577,21.04,21.027,21.013,10.0]
[1680646495763,21.04,21.027,21.014,17.0]
[1680646500379,10.0,21.029,21.014,17.0]
[1680646500579,20.0,21.028,21.014,17.0]
[1680646508688,20.0,21.028,21.013,10.0]
[1680646509380,10.0,21.027,21.012,10.0]
[1680646509586,10.0,21.027,21.013,17.0]
[1680646509787,10.0,21.027,20.997,47.63]
[1680646509788,21.04,21.02,21.003,21.424]
[1680646509999,21.04,21.02,21.004,20.0]
[1680646510290,21.04,21.02,21.006,21.421]
[1680646510493,21.04,21.02,21.007,20.0]
[1680646510786,21.04,21.02,21.005,64.30130668]
[1680646510787,21.04,21.02,21.005,54.30130668]
[1680646510989,37.0,21.019,21.001,21.426]
[1680646511198,10.0,21.018,21.001,21.426]
[1680646511376,17.0,21.017,21.001,21.426]
[1680646511695,17.0,21.017,21.009,19.028561]
[1680646516295,10.0,21.016,21.009,19.028561]
[1680646516501,17.0,21.015,21.009,19.028561]
[1680646517081,10.0,21.014,21.009,19.028561]
[1680646517285,17.0,21.013,21.009,19.028561]
[1680646518194,17.0,21.013,21.0,172.97330668]
[1680646518416,20.98,21.01,21.0,172.97330668]
[1680646521603,30.98,21.02,21.003,10.0]
[1680646521805,30.98,21.02,21.0,172.97330668]
[1680646522005,30.98,21.02,21.001,10.0]
[1680646522504,30.98,21.02,21.002,17.0]
[1680646523801,21.08,21.01,21.001,21.427]
[1680646526307,21.08,21.01,21.0,172.97330668]
[1680646527996,21.08,21.01,21.0,54.30130668]
[1680646528205,10.0,21.008,20.993,21.435]
[1680646528411,10.0,21.008,20.996,20.98]
[1680646529497,17.0,21.009,20.996,20.98]
[1680646529696,20.0,21.008,20.996,20.98]
[1680646531117,10.0,21.007,20.996,20.98]
[1680646536512,17.0,21.006,20.996,20.98]
[1680646538801,10.0,21.007,20.996,20.98]
[1680646539317,17.0,21.006,20.996,20.98]
[1680646542313,17.0,21.006,20.993,10.0]
[1680646543224,17.0,21.006,20.992,167.72070668]
[1680646545321,17.0,21.006,20.992,189.15570668]
[1680646545506,17.0,21.007,20.992,189.15570668]
[1680646545918,17.0,21.007,20.993,10.0]
[1680646547502,17.0,21.007,20.992,189.15570668]
[1680646547707,10.0,21.006,20.992,189.15570668]
[1680646547907,17.0,21.005,20.992,189.15570668]
[1680646548411,17.0,21.006,20.992,189.15570668]
[1680646552032,21.08,21.0,20.992,189.15570668]
[1680646553127,21.08,21.0,20.992,113.4194]
[1680646562824,20.0,21.008,20.993,78.67964001]
[1680646563020,20.0,21.009,20.995,21.433]
[1680646563219,20.0,21.009,20.997,10.0]
[1680646568931,20.0,21.009,20.996,51.67964001]
[1680646577338,12.75,21.01,20.997,17.0]
[1680646577633,22.67,21.02,21.001,21.427]
[1680646577838,22.67,21.02,21.002,17.0]
[1680646578638,22.67,21.02,21.003,10.0]
[1680646578841,22.67,21.02,21.004,17.0]
[1680646579042,10.0,21.018,21.001,21.427]
[1680646579226,10.0,21.018,21.002,134.4788]
[1680646579632,10.0,21.018,21.003,10.0]
[1680646580336,37.0,21.019,21.003,10.0]
[1680646581136,10.0,21.018,21.001,21.427]
[1680646581323,10.0,21.018,21.002,134.2255]
[1680646582537,10.0,21.018,21.002,117.2255]
[1680646582742,17.0,21.017,21.002,117.2255]
[1680646582938,10.0,21.016,21.002,117.2255]
[1680646583140,17.0,21.015,21.002,117.2255]
[1680646584230,12.67,21.01,21.002,117.2255]
[1680646585138,12.67,21.01,20.999,119.4974]
[1680646585741,10.0,21.018,21.0,21.428]
[1680646586044,10.0,21.018,21.001,27.0]
[1680646586938,12.67,21.01,21.0,73.10764001]
[1680646588933,12.67,21.01,21.0,21.428]
[1680646590943,7.94,21.01,21.0,21.428]
[1680646593838,17.0,21.009,20.996,111.8772]
[1680646594040,37.0,21.009,20.996,111.8772]
[1680646594539,10.0,21.008,20.996,111.8772]
[1680646601845,20.0,21.009,20.996,111.8772]
[1680646602631,20.0,21.009,20.998,10.0]
[1680646602845,20.0,21.009,20.999,17.0]
[1680646606931,20.0,21.009,20.998,17.0]
[1680646617348,20.0,21.009,20.999,10.0]
[1680646617554,20.0,21.009,21.0,17.0]
[1680646618156,20.0,21.009,20.998,17.0]
[1680646636263,20.0,21.009,20.996,111.8772]